Workbook

Sheet Podaci
A1: Grafikon poboljšanja fizičke spremnosti za žene
A3: Visina (stope) | B3: 5
A4: Visina (inči) | B4: 6.5
A6: Datum | B6: Težina (funte) | C6: Prsni koš (inči) | D6: Struk (inči) | E6: Bokovi (inči) | F6: Zapešće (inči) | G6: Nadlaktica (inči) | H6: Procijenjena težina za vitko tijelo | I6: Procijenjena težina tjelesne masnoće | J6: Procijenjeni postotak tjelesne masnoće | K6: Procijenjeni indeks tjelesne težine (BMI)
A7: 2007-01-01 | B7: 140 | C7: 32 | D7: 31 | E7: 40 | F7: 6.8 | G7: 11.5 | H7: =((B7*0.732)+ 8.987)+(F7/3.14)-(D7*0.157)-(E7*0.249)+(G7*0.434) -> 103.7966051 | I7: =B7-H7 -> 36.2033949 | J7: =IF(ISERROR((I7*100)/B7),"",(I7*100)/B7) -> 25.85956779 | K7: =(B7/(($B$3*12)+$B$4))/(($B$3*12)+$B$4)*703 -> 22.2556391
A8: 2007-01-08 | B8: 140 | C8: 32 | D8: 31 | E8: 39.5 | F8: 6.7 | G8: 11.5 | H8: =((B8*0.732)+ 8.987)+(F8/3.14)-(D8*0.157)-(E8*0.249)+(G8*0.434) -> 103.889258 | I8: =B8-H8 -> 36.11074204 | J8: 25.79338717 | K8: =(B8/(($B$3*12)+$B$4))/(($B$3*12)+$B$4)*703 -> 22.2556391
A9: 2007-01-15 | B9: 139 | C9: 32 | D9: 31 | E9: 39.5 | F9: 6.7 | G9: 11.5 | H9: =((B9*0.732)+ 8.987)+(F9/3.14)-(D9*0.157)-(E9*0.249)+(G9*0.434) -> 103.157258 | I9: =B9-H9 -> 35.84274204 | J9: 25.78614535 | K9: =(B9/(($B$3*12)+$B$4))/(($B$3*12)+$B$4)*703 -> 22.09667025
A10: 2007-01-22 | B10: 139 | C10: 32 | D10: 28 | E10: 39 | F10: 6.3 | G10: 11 | H10: =((B10*0.732)+ 8.987)+(F10/3.14)-(D10*0.157)-(E10*0.249)+(G10*0.434) -> 103.4083694 | I10: =B10-H10 -> 35.59163057 | J10: 25.60548962 | K10: =(B10/(($B$3*12)+$B$4))/(($B$3*12)+$B$4)*703 -> 22.09667025
A11: 2007-01-29 | B11: 139 | C11: 32 | D11: 28 | E11: 39 | F11: 6.3 | G11: 11 | H11: =((B11*0.732)+ 8.987)+(F11/3.14)-(D11*0.157)-(E11*0.249)+(G11*0.434) -> 103.4083694 | I11: =B11-H11 -> 35.59163057 | J11: 25.60548962 | K11: =(B11/(($B$3*12)+$B$4))/(($B$3*12)+$B$4)*703 -> 22.09667025
